{"text_format":"1","workbook":"xlsx","n_sheets":1,"sheets":["Sheet1"],"not_rendered":{"charts":0,"images":0,"macros":1,"external_links":0,"defined_names":0,"comments":0,"pivot_tables":0},"unopened":[],"bounds":{"document_bytes":16777216,"sheet_cells":100000,"rows_first":2000,"rows_last":500,"rows_between":2000,"halvings":0,"cell_chars":16384,"cell_head_chars":4096},"cells_cut":0,"cells_raw":0,"read":"whole","date_system":"1900"}

{"sheet":"Sheet1","index":0,"n_rows":13,"n_cols":8,"rows_kept":13,"cut":false,"hidden":false,"merged":[]}
[null,"Des","Number","Name"]
[null,"1TAGHLEEF",{"$f":"Salim_Extract(B2,\"^\\d+\")","v":"1"},{"$f":"REPLACE(B2,1,LEN(C2),\"\")","v":"TAGHLEEF"},null,null,null,"L1TAGHLEEF INDUSTRIES S.A.E"]
[null,"8TAGHLEEF",{"$f":"Salim_Extract(B3,\"^\\d+\")","v":"8"},{"$f":"REPLACE(B3,1,LEN(C3),\"\")","v":"TAGHLEEF"},null,null,null,"L2TAGHLEEF INDUSTRIES S.A.E"]
[null,"TAGHLEEF INDUSTRIES S.A.","","TAGHLEEF INDUSTRIES S.A."]
[null,"9TAGHLEEF","9","TAGHLEEF"]
[null,"0TAGHLEEF","0","TAGHLEEF"]
[null,"011TAGHLEEF","011","TAGHLEEF"]
[null,"01TAGHLEEF","01","TAGHLEEF"]
[null,"96D/C Ref.","96","D/C Ref."]
[null,"D/C Ref.","","D/C Ref."]
[null,"146FAST WAY","146","FAST WAY"]
[null,"70D/C Ref.","70","D/C Ref."]
[null,"148TAGHLEEF INDUSTRIES S.A.","148","TAGHLEEF INDUSTRIES S.A."]